[Event "*** Titled Tuesday Blitz"]
[Site "Chess.com"]
[Date "2021.04.06"]
[Round "1"]
[White "LiverpooL174"]
[Black "SargissyanSargis"]
[Result "1-0"]
[WhiteElo "2690"]
[BlackElo "2373"]
[TimeControl "180+1"]
[EndTime "10:08:13 PDT"]
[Termination "LiverpooL174 won on time"]

1. Nf3 {[%clk 0:03:00.6]} 1... Nf6 {[%clk 0:02:59.3]} 2. b3 {[%clk 0:03:00.9]}
2... c5 {[%clk 0:02:51.9]} 3. Bb2 {[%clk 0:03:01.8]} 3... Nc6 {[%clk 0:02:52.3]}
4. e3 {[%clk 0:02:59.3]} 4... d5 {[%clk 0:02:44.3]} 5. Bb5 {[%clk 0:02:53.2]}
5... Bd7 {[%clk 0:02:36.6]} 6. c4 {[%clk 0:02:52.8]} 6... e6 {[%clk 0:02:34.4]}
7. O-O {[%clk 0:02:51.2]} 7... Be7 {[%clk 0:02:21.2]} 8. cxd5 {[%clk 0:02:42.9]}
8... exd5 {[%clk 0:02:17.5]} 9. d4 {[%clk 0:02:42.8]} 9... cxd4 {[%clk
0:02:14.4]} 10. Nxd4 {[%clk 0:02:42.5]} 10... O-O {[%clk 0:02:13]} 11. Be2
{[%clk 0:02:40.8]} 11... Ne4 {[%clk 0:02:00.6]} 12. Nc3 {[%clk 0:02:34.9]} 12...
Nxc3 {[%clk 0:01:40.5]} 13. Bxc3 {[%clk 0:02:35.8]} 13... Bf6 {[%clk 0:01:40.9]}
14. Rc1 {[%clk 0:02:34.3]} 14... Rc8 {[%clk 0:01:30.1]} 15. Qd2 {[%clk
0:02:32.6]} 15... Nxd4 {[%clk 0:00:44.2]} 16. Bxd4 {[%clk 0:02:33.5]} 16... Bxd4
{[%clk 0:00:27.2]} 17. Qxd4 {[%clk 0:02:32.8]} 17... Qa5 {[%clk 0:00:26.3]} 18.
a4 {[%clk 0:02:29.4]} 18... Be6 {[%clk 0:00:22.3]} 19. Bf3 {[%clk 0:02:26]}
19... Rfd8 {[%clk 0:00:16.2]} 20. h3 {[%clk 0:02:25.2]} 20... h6 {[%clk
0:00:15.7]} 21. Rfd1 {[%clk 0:02:16.9]} 21... Rc6 {[%clk 0:00:06.8]} 22. Rxc6
{[%clk 0:02:04.1]} 22... bxc6 {[%clk 0:00:06.9]} 23. b4 {[%clk 0:01:59.8]} 23...
Qxa4 {[%clk 0:00:05.6]} 24. Ra1 {[%clk 0:02:00.4]} 24... Qb5 {[%clk 0:00:04.7]}
25. Rxa7 {[%clk 0:01:59.9]} 25... Rb8 {[%clk 0:00:04]} 26. Rc7 {[%clk
0:01:51.5]} 26... Qxb4 {[%clk 0:00:03.9]} 27. Qxb4 {[%clk 0:01:51.9]} 27... Rxb4
{[%clk 0:00:03.5]} 28. Rxc6 {[%clk 0:01:52.6]} 28... Rc4 {[%clk 0:00:04]} 29.
Ra6 {[%clk 0:01:50.8]} 29... Rc1+ {[%clk 0:00:04.4]} 30. Kh2 {[%clk 0:01:50.6]}
30... g6 {[%clk 0:00:05]} 31. h4 {[%clk 0:01:50.2]} 31... h5 {[%clk 0:00:04.6]}
32. Kg3 {[%clk 0:01:50.4]} 32... Kg7 {[%clk 0:00:04.9]} 33. Ra5 {[%clk
0:01:48.7]} 33... Rc2 {[%clk 0:00:01.8]} 34. Bxd5 {[%clk 0:01:47.9]} 34... Bxd5
{[%clk 0:00:02.5]} 35. Rxd5 {[%clk 0:01:48.8]} 35... Rc4 {[%clk 0:00:02.8]} 36.
Rd4 {[%clk 0:01:48.9]} 36... Rc5 {[%clk 0:00:03.2]} 37. Kf3 {[%clk 0:01:47.4]}
37... Ra5 {[%clk 0:00:03.6]} 38. g3 {[%clk 0:01:47.6]} 38... Rb5 {[%clk
0:00:03.9]} 39. Ra4 {[%clk 0:01:48]} 39... Rc5 {[%clk 0:00:04.2]} 40. e4 {[%clk
0:01:47.5]} 40... Rb5 {[%clk 0:00:04.3]} 41. Kf4 {[%clk 0:01:47.1]} 41... Rb2
{[%clk 0:00:04.2]} 42. f3 {[%clk 0:01:47.3]} 42... Rb3 {[%clk 0:00:04.2]} 43.
Ra7 {[%clk 0:01:47.4]} 43... Rc3 {[%clk 0:00:04.2]} 44. Rb7 {[%clk 0:01:47.3]}
44... Rd3 {[%clk 0:00:03.9]} 45. g4 {[%clk 0:01:46.5]} 45... hxg4 {[%clk
0:00:02.5]} 46. fxg4 {[%clk 0:01:47.4]} 46... Rd1 {[%clk 0:00:02.8]} 47. Rb3
{[%clk 0:01:42.7]} 47... Rf1+ {[%clk 0:00:02.7]} 48. Rf3 {[%clk 0:01:43.2]}
48... Ra1 {[%clk 0:00:03.1]} 49. Kg3 {[%clk 0:01:42.6]} 49... Ra4 {[%clk
0:00:03]} 50. Re3 {[%clk 0:01:43]} 50... Rb4 {[%clk 0:00:03.2]} 51. Kf4 {[%clk
0:01:43.5]} 51... Rc4 {[%clk 0:00:03.4]} 52. Rd3 {[%clk 0:01:43.5]} 52... Ra4
{[%clk 0:00:03.5]} 53. Rb3 {[%clk 0:01:29.9]} 53... Ra1 {[%clk 0:00:03.9]} 54.
Rf3 {[%clk 0:01:28.5]} 54... Rh1 {[%clk 0:00:04.3]} 55. Kg3 {[%clk 0:01:28.3]}
55... Rg1+ {[%clk 0:00:04.2]} 56. Kh3 {[%clk 0:01:28.8]} 56... Ra1 {[%clk
0:00:04.1]} 57. Rf2 {[%clk 0:01:28.3]} 57... Re1 {[%clk 0:00:03.9]} 58. Rf4
{[%clk 0:01:27.9]} 58... Re3+ {[%clk 0:00:04.4]} 59. Kg2 {[%clk 0:01:24.5]}
59... Ra3 {[%clk 0:00:03.8]} 60. g5 {[%clk 0:01:24]} 60... Rb3 {[%clk
0:00:03.4]} 61. Rf3 {[%clk 0:01:24.4]} 61... Rb4 {[%clk 0:00:03.1]} 62. Re3
{[%clk 0:01:25]} 62... Rb1 {[%clk 0:00:02.6]} 63. Kg3 {[%clk 0:01:25]} 63... Rb2
{[%clk 0:00:03]} 64. Kg4 {[%clk 0:01:24.3]} 64... Ra2 {[%clk 0:00:03.6]} 65. Rg3
{[%clk 0:01:24.7]} 65... Rb2 {[%clk 0:00:03.8]} 66. Kf4 {[%clk 0:01:25]} 66...
Rf2+ {[%clk 0:00:03.7]} 67. Ke5 {[%clk 0:01:24.4]} 67... Ra2 {[%clk 0:00:04.1]}
68. Rg4 {[%clk 0:01:24.7]} 68... Ra5+ {[%clk 0:00:04.5]} 69. Kf4 {[%clk
0:01:25.4]} 69... Ra4 {[%clk 0:00:05.1]} 70. Rg3 {[%clk 0:01:25.7]} 70... Rb4
{[%clk 0:00:05.1]} 71. Rd3 {[%clk 0:01:26.2]} 71... Rb1 {[%clk 0:00:05]} 72. Rd7
{[%clk 0:01:26.3]} 72... Rf1+ {[%clk 0:00:04.9]} 73. Kg3 {[%clk 0:01:26.6]}
73... Re1 {[%clk 0:00:04.7]} 74. Kf3 {[%clk 0:01:26.5]} 74... Rh1 {[%clk
0:00:04.3]} 75. e5 {[%clk 0:01:27.1]} 75... Kf8 {[%clk 0:00:02.1]} 76. Kg3
{[%clk 0:01:26]} 76... Re1 {[%clk 0:00:02.1]} 77. Kf4 {[%clk 0:01:25.9]} 77...
Re2 {[%clk 0:00:02]} 78. Ra7 {[%clk 0:01:25.3]} 78... Re1 {[%clk 0:00:02]} 79.
Rb7 {[%clk 0:01:22.7]} 79... Re2 {[%clk 0:00:02.1]} 80. Rc7 {[%clk 0:01:15.9]}
80... Re1 {[%clk 0:00:02.6]} 81. Rc2 {[%clk 0:01:16.6]} 81... Kg7 {[%clk
0:00:01.3]} 82. Rf2 {[%clk 0:01:17]} 1-0

[Event "*** Titled Tuesday Blitz"]
[Site "Chess.com"]
[Date "2021.04.06"]
[Round "1"]
[White "sewin16"]
[Black "EugeneRougon"]
[Result "1-0"]
[WhiteElo "2460"]
[BlackElo "2741"]
[TimeControl "180+1"]
[EndTime "10:08:14 PDT"]
[Termination "sewin16 won by resignation"]

1. e4 {[%clk 0:03:00.9]} 1... d6 {[%clk 0:02:57.2]} 2. d4 {[%clk 0:03:00.3]}
2... g6 {[%clk 0:02:57.1]} 3. Nc3 {[%clk 0:03:00.4]} 3... Nf6 {[%clk 0:02:57]}
4. Nf3 {[%clk 0:02:58.7]} 4... Bg7 {[%clk 0:02:56.8]} 5. h3 {[%clk 0:02:58.3]}
5... O-O {[%clk 0:02:56.6]} 6. Be2 {[%clk 0:02:58.7]} 6... a6 {[%clk 0:02:51.6]}
7. a4 {[%clk 0:02:56.7]} 7... b6 {[%clk 0:02:51.1]} 8. O-O {[%clk 0:02:53.2]}
8... Bb7 {[%clk 0:02:51.1]} 9. e5 {[%clk 0:02:51.7]} 9... Ne8 {[%clk 0:02:40.1]}
10. Bf4 {[%clk 0:02:49.6]} 10... c5 {[%clk 0:02:35]} 11. d5 {[%clk 0:02:23.9]}
11... Nd7 {[%clk 0:02:27.5]} 12. exd6 {[%clk 0:02:08.6]} 12... Nxd6 {[%clk
0:02:26.8]} 13. Bg3 {[%clk 0:02:05.2]} 13... Nf5 {[%clk 0:02:25]} 14. Bh2 {[%clk
0:02:04.6]} 14... Nd4 {[%clk 0:02:16.6]} 15. Bc4 {[%clk 0:01:37.6]} 15... Nf6
{[%clk 0:02:06.9]} 16. Nxd4 {[%clk 0:01:32.8]} 16... cxd4 {[%clk 0:02:06.6]} 17.
Qxd4 {[%clk 0:01:33.2]} 17... Nxd5 {[%clk 0:02:02.6]} 18. Qe4 {[%clk 0:01:28.7]}
18... Nxc3 {[%clk 0:01:32.9]} 19. Qxb7 {[%clk 0:01:27.3]} 19... Qc8 {[%clk
0:01:33.4]} 20. Qxc8 {[%clk 0:01:21.3]} 20... Rfxc8 {[%clk 0:01:33.4]} 21. Bd3
{[%clk 0:01:20.9]} 21... Nd5 {[%clk 0:01:29.9]} 22. Be4 {[%clk 0:01:20.6]} 22...
e6 {[%clk 0:01:26.5]} 23. c3 {[%clk 0:01:20.9]} 23... Rc4 {[%clk 0:01:15.7]} 24.
Bd3 {[%clk 0:01:16.9]} 24... Rc5 {[%clk 0:01:09.2]} 25. Rfd1 {[%clk 0:01:14.9]}
25... f5 {[%clk 0:00:48.1]} 26. Be2 {[%clk 0:01:09.2]} 26... Kf7 {[%clk
0:00:37]} 27. Bf3 {[%clk 0:01:05.4]} 27... Rac8 {[%clk 0:00:33.7]} 28. Be2
{[%clk 0:01:02.2]} 28... a5 {[%clk 0:00:23.2]} 29. Rac1 {[%clk 0:00:55.7]} 29...
e5 {[%clk 0:00:21.6]} 30. Bb5 {[%clk 0:00:54.3]} 30... Bh6 {[%clk 0:00:17.7]}
31. Rc2 {[%clk 0:00:52]} 31... Bf4 {[%clk 0:00:18.3]} 32. g3 {[%clk 0:00:49.1]}
32... Bg5 {[%clk 0:00:17.8]} 33. Re2 {[%clk 0:00:48.7]} 33... Bf6 {[%clk
0:00:17.7]} 34. c4 {[%clk 0:00:43]} 34... Nb4 {[%clk 0:00:16.6]} 35. Rd7+ {[%clk
0:00:43.4]} 35... Ke6 {[%clk 0:00:15.8]} 36. Rxh7 {[%clk 0:00:41.1]} 36... e4
{[%clk 0:00:15.7]} 37. g4 {[%clk 0:00:40.1]} 37... Nd3 {[%clk 0:00:15.4]} 38. b3
{[%clk 0:00:39.2]} 38... Be5 {[%clk 0:00:14.4]} 39. gxf5+ {[%clk 0:00:36.6]}
39... Kxf5 {[%clk 0:00:12.4]} 40. Bd7+ {[%clk 0:00:34.6]} 40... Kf6 {[%clk
0:00:09.7]} 41. Bxc8 {[%clk 0:00:34]} 41... Bxh2+ {[%clk 0:00:09.5]} 42. Kxh2
{[%clk 0:00:33.4]} 42... Rxc8 {[%clk 0:00:10.4]} 43. Rxe4 {[%clk 0:00:33.2]}
43... Nc5 {[%clk 0:00:09]} 44. Re3 {[%clk 0:00:32.3]} 44... Rd8 {[%clk
0:00:08.5]} 45. Rf3+ {[%clk 0:00:28.6]} 45... Kg5 {[%clk 0:00:06.7]} 46. h4+
{[%clk 0:00:18.3]} 46... Kg4 {[%clk 0:00:06.9]} 47. Rg3+ {[%clk 0:00:19.2]}
47... Kf5 {[%clk 0:00:07.2]} 48. h5 {[%clk 0:00:18.6]} 48... gxh5 {[%clk
0:00:06.8]} 49. Rxh5+ {[%clk 0:00:19.5]} 49... Kf4 {[%clk 0:00:07]} 50. Rg6
{[%clk 0:00:18.8]} 50... Rd2 {[%clk 0:00:06.1]} 51. Kg2 {[%clk 0:00:18.9]} 51...
Ne4 {[%clk 0:00:05.3]} 52. Rh4+ {[%clk 0:00:14.6]} 52... Kf5 {[%clk 0:00:05.7]}
53. Rxe4 {[%clk 0:00:15.5]} 53... Kxe4 {[%clk 0:00:05.4]} 54. Rxb6 {[%clk
0:00:15.6]} 54... Rb2 {[%clk 0:00:05.7]} 55. Rb5 {[%clk 0:00:16.3]} 55... Kd4
{[%clk 0:00:06.1]} 56. Kg3 {[%clk 0:00:16.5]} 56... Kc3 {[%clk 0:00:05.5]} 57.
f4 {[%clk 0:00:16.5]} 57... Rb1 {[%clk 0:00:05.6]} 58. Kg4 {[%clk 0:00:16.4]}
58... Kd4 {[%clk 0:00:05.2]} 59. Kf5 {[%clk 0:00:16.4]} 1-0

[Event "*** Titled Tuesday Blitz"]
[Site "Chess.com"]
[Date "2021.04.06"]
[Round "1"]
[White "grzechu96"]
[Black "Ladislav1969"]
[Result "1-0"]
[WhiteElo "2663"]
[BlackElo "2353"]
[TimeControl "180+1"]
[EndTime "10:08:19 PDT"]
[Termination "grzechu96 won on time"]

1. e4 {[%clk 0:03:00.9]} 1... c5 {[%clk 0:01:51.7]} 2. Nf3 {[%clk 0:03:00.4]}
2... e6 {[%clk 0:01:51.2]} 3. b3 {[%clk 0:02:58.3]} 3... Nc6 {[%clk 0:01:50.5]}
4. Bb2 {[%clk 0:02:56.9]} 4... d6 {[%clk 0:01:51.4]} 5. d4 {[%clk 0:02:50.4]}
5... cxd4 {[%clk 0:01:50.9]} 6. Nxd4 {[%clk 0:02:51.3]} 6... Nf6 {[%clk
0:01:51.2]} 7. Nd2 {[%clk 0:02:46.3]} 7... Bd7 {[%clk 0:01:50.7]} 8. Bd3 {[%clk
0:02:41.2]} 8... Be7 {[%clk 0:01:50]} 9. O-O {[%clk 0:02:40.8]} 9... O-O {[%clk
0:01:48.6]} 10. c4 {[%clk 0:02:40.6]} 10... d5 {[%clk 0:01:47.4]} 11. Nxc6
{[%clk 0:02:37.7]} 11... bxc6 {[%clk 0:01:46.9]} 12. e5 {[%clk 0:02:37.7]} 12...
Ne8 {[%clk 0:01:46.9]} 13. Qc2 {[%clk 0:02:17.7]} 13... g6 {[%clk 0:01:44.1]}
14. Rad1 {[%clk 0:02:17.3]} 14... f5 {[%clk 0:01:42.4]} 15. exf6 {[%clk
0:02:16.1]} 15... Bxf6 {[%clk 0:01:40.9]} 16. Rfe1 {[%clk 0:02:02.1]} 16... Bxb2
{[%clk 0:01:39.6]} 17. Qxb2 {[%clk 0:02:02.2]} 17... Qf6 {[%clk 0:01:40]} 18.
Qxf6 {[%clk 0:02:01.8]} 18... Nxf6 {[%clk 0:01:40.2]} 19. Nf3 {[%clk 0:02:00.7]}
19... a5 {[%clk 0:01:35.1]} 20. Ne5 {[%clk 0:02:00.4]} 20... Be8 {[%clk
0:01:35.2]} 21. Rc1 {[%clk 0:01:45.5]} 21... a4 {[%clk 0:01:34.2]} 22. b4 {[%clk
0:01:44.4]} 22... Rb8 {[%clk 0:01:33.2]} 23. a3 {[%clk 0:01:44.4]} 23... Rb6
{[%clk 0:01:28.5]} 24. cxd5 {[%clk 0:01:35.8]} 24... cxd5 {[%clk 0:01:27.6]} 25.
Rc7 {[%clk 0:01:32.3]} 25... Bb5 {[%clk 0:01:22.7]} 26. Bxb5 {[%clk 0:01:26.6]}
26... Rxb5 {[%clk 0:01:22.9]} 27. f3 {[%clk 0:01:27.2]} 27... d4 {[%clk
0:01:16.2]} 28. Nd3 {[%clk 0:01:26.5]} 28... Nd5 {[%clk 0:01:11.7]} 29. Rc4
{[%clk 0:01:20.2]} 29... Nf4 {[%clk 0:01:08.9]} 30. Rxd4 {[%clk 0:01:14.4]}
30... Nxd3 {[%clk 0:00:30]} 31. Rxd3 {[%clk 0:01:15.3]} 31... e5 {[%clk
0:00:29.5]} 32. Rde3 {[%clk 0:01:07.7]} 32... Rc8 {[%clk 0:00:29]} 33. Kf2
{[%clk 0:01:00.8]} 33... Rc2+ {[%clk 0:00:28.4]} 34. R1e2 {[%clk 0:01:01.1]}
34... Rc4 {[%clk 0:00:28.2]} 35. Rxe5 {[%clk 0:01:00.4]} 35... Rxe5 {[%clk
0:00:26.5]} 36. Rxe5 {[%clk 0:01:00.6]} 36... Rc3 {[%clk 0:00:27.2]} 37. Re3
{[%clk 0:01:00.5]} 37... Rc2+ {[%clk 0:00:27.8]} 38. Kg3 {[%clk 0:00:57.4]}
38... Kf7 {[%clk 0:00:26.2]} 39. h4 {[%clk 0:00:57.8]} 39... Rb2 {[%clk
0:00:26]} 40. h5 {[%clk 0:00:36.1]} 40... Rb3 {[%clk 0:00:23.1]} 41. hxg6+
{[%clk 0:00:35.8]} 41... hxg6 {[%clk 0:00:23.4]} 42. Kf4 {[%clk 0:00:36.3]}
42... Kf6 {[%clk 0:00:23.6]} 43. Ke4 {[%clk 0:00:35]} 43... Rb2 {[%clk
0:00:20.5]} 44. g4 {[%clk 0:00:35.3]} 44... g5 {[%clk 0:00:20.8]} 45. Rc3 {[%clk
0:00:35.1]} 45... Re2+ {[%clk 0:00:19.4]} 46. Kd3 {[%clk 0:00:33.9]} 46... Rf2
{[%clk 0:00:19.4]} 47. Ke3 {[%clk 0:00:32.5]} 47... Rb2 {[%clk 0:00:18.5]} 48.
Ke4 {[%clk 0:00:28.9]} 48... Re2+ {[%clk 0:00:16.7]} 49. Kd4 {[%clk 0:00:29.3]}
49... Ra2 {[%clk 0:00:15.2]} 50. b5 {[%clk 0:00:26.7]} 50... Rb2 {[%clk
0:00:14.5]} 51. Kc4 {[%clk 0:00:26.8]} 51... Ke5 {[%clk 0:00:13.1]} 52. Rd3
{[%clk 0:00:19.2]} 52... Kf4 {[%clk 0:00:11.1]} 53. Kc5 {[%clk 0:00:19.5]} 53...
Rb3 {[%clk 0:00:10.2]} 54. Rd4+ {[%clk 0:00:19.9]} 54... Kxf3 {[%clk 0:00:08.9]}
55. Rxa4 {[%clk 0:00:20.5]} 55... Rc3+ {[%clk 0:00:07.2]} 56. Rc4 {[%clk
0:00:19.5]} 56... Rxa3 {[%clk 0:00:06]} 57. b6 {[%clk 0:00:19.7]} 57... Rb3
{[%clk 0:00:04.7]} 58. Kc6 {[%clk 0:00:20.1]} 58... Kg3 {[%clk 0:00:02.3]} 59.
b7 {[%clk 0:00:20]} 59... Kh4 {[%clk 0:00:01.8]} 60. Kc7 {[%clk 0:00:19.4]} 1-0

[Event "*** Titled Tuesday Blitz"]
[Site "Chess.com"]
[Date "2021.04.06"]
[Round "1"]
[White "Kostukov_Alex"]
[Black "IwkooO"]
[Result "0-1"]
[WhiteElo "2297"]
[BlackElo "2603"]
[TimeControl "180+1"]
[EndTime "10:08:20 PDT"]
[Termination "IwkooO won by resignation"]

1. g3 {[%clk 0:02:55.4]} 1... c6 {[%clk 0:02:58.1]} 2. Bg2 {[%clk 0:02:55]} 2...
g6 {[%clk 0:02:58.7]} 3. Nf3 {[%clk 0:02:52.5]} 3... Bg7 {[%clk 0:02:58.8]} 4.
O-O {[%clk 0:02:52.5]} 4... Nf6 {[%clk 0:02:59]} 5. d4 {[%clk 0:02:52.6]} 5...
O-O {[%clk 0:02:59.3]} 6. c4 {[%clk 0:02:52.8]} 6... d5 {[%clk 0:02:59]} 7. cxd5
{[%clk 0:02:52.5]} 7... Nxd5 {[%clk 0:02:59.9]} 8. e4 {[%clk 0:02:47.3]} 8...
Nb6 {[%clk 0:02:59.4]} 9. h3 {[%clk 0:02:46]} 9... Na6 {[%clk 0:02:56.4]} 10.
Nc3 {[%clk 0:02:44.7]} 10... Be6 {[%clk 0:02:52.1]} 11. Re1 {[%clk 0:02:27.7]}
11... h6 {[%clk 0:02:46.7]} 12. b3 {[%clk 0:02:22.5]} 12... c5 {[%clk
0:02:38.1]} 13. Be3 {[%clk 0:02:20.5]} 13... Rc8 {[%clk 0:02:36]} 14. Rc1 {[%clk
0:02:18.8]} 14... Qd7 {[%clk 0:02:26.1]} 15. dxc5 {[%clk 0:02:05.3]} 15... Nxc5
{[%clk 0:02:24.9]} 16. Qxd7 {[%clk 0:02:04.1]} 16... Nbxd7 {[%clk 0:02:24.5]}
17. Nd5 {[%clk 0:01:59.9]} 17... Bxd5 {[%clk 0:02:22]} 18. exd5 {[%clk 0:02:00]}
18... Nd3 {[%clk 0:02:22.2]} 19. Rxc8 {[%clk 0:01:58.8]} 19... Rxc8 {[%clk
0:02:23.1]} 20. Rd1 {[%clk 0:01:57.6]} 20... Nb4 {[%clk 0:02:23.5]} 21. d6
{[%clk 0:01:36.2]} 21... e6 {[%clk 0:02:17]} 22. Nd4 {[%clk 0:01:29.2]} 22... a6
{[%clk 0:02:07.9]} 23. a3 {[%clk 0:01:28.6]} 23... Nd5 {[%clk 0:02:02.9]} 24.
Bxd5 {[%clk 0:01:27.3]} 24... exd5 {[%clk 0:02:03.8]} 25. Rd3 {[%clk 0:01:17.5]}
25... Ne5 {[%clk 0:01:59.1]} 26. Rd1 {[%clk 0:01:14]} 26... Rd8 {[%clk
0:01:59.6]} 27. Nc2 {[%clk 0:01:04.7]} 27... Rxd6 {[%clk 0:01:46]} 28. f4 {[%clk
0:01:00.7]} 28... Nc6 {[%clk 0:01:45.2]} 29. Bc5 {[%clk 0:00:59.7]} 29... Rd8
{[%clk 0:01:41.5]} 30. Ne3 {[%clk 0:00:51.4]} 30... d4 {[%clk 0:01:38.3]} 31.
Nc4 {[%clk 0:00:51.3]} 31... b5 {[%clk 0:01:31.5]} 32. Nd6 {[%clk 0:00:44.9]}
32... Bf8 {[%clk 0:01:29.9]} 33. Nb7 {[%clk 0:00:43.5]} 33... Bxc5 {[%clk
0:01:23.1]} 34. Nxc5 {[%clk 0:00:32.3]} 34... a5 {[%clk 0:01:23.6]} 35. Kf2
{[%clk 0:00:31.2]} 35... Re8 {[%clk 0:01:20.3]} 36. Re1 {[%clk 0:00:29.5]} 36...
Rxe1 {[%clk 0:01:11.8]} 37. Kxe1 {[%clk 0:00:29.6]} 37... Kf8 {[%clk 0:01:11.4]}
38. Ke2 {[%clk 0:00:29.8]} 38... Ke7 {[%clk 0:01:11.9]} 39. Kd3 {[%clk
0:00:30.5]} 39... Kd6 {[%clk 0:01:12.4]} 40. Ne4+ {[%clk 0:00:29.1]} 40... Kd5
{[%clk 0:01:13]} 41. Nf6+ {[%clk 0:00:28.8]} 41... Ke6 {[%clk 0:01:13.5]} 42.
Ne4 {[%clk 0:00:28.7]} 42... f5 {[%clk 0:01:13.2]} 43. Nc5+ {[%clk 0:00:26.1]}
43... Kd5 {[%clk 0:01:13.6]} 44. Nd7 {[%clk 0:00:25.8]} 44... Nd8 {[%clk
0:01:07.5]} 45. Nb6+ {[%clk 0:00:24]} 45... Kc6 {[%clk 0:01:03.4]} 46. Nc8
{[%clk 0:00:24]} 46... Ne6 {[%clk 0:01:03.9]} 47. Ne7+ {[%clk 0:00:23.6]} 47...
Kd6 {[%clk 0:00:56.7]} 48. Nxg6 {[%clk 0:00:24.5]} 48... h5 {[%clk 0:00:52]} 49.
h4 {[%clk 0:00:21.4]} 49... Kc5 {[%clk 0:00:43.8]} 50. Ne7 {[%clk 0:00:19.5]}
50... Ng7 {[%clk 0:00:44.1]} 51. Ng6 {[%clk 0:00:16]} 51... Kd5 {[%clk
0:00:39.8]} 52. Ne7+ {[%clk 0:00:15.6]} 52... Kd6 {[%clk 0:00:40.4]} 53. Ng6
{[%clk 0:00:12.7]} 53... Ne6 {[%clk 0:00:40.6]} 54. Ne5 {[%clk 0:00:11.3]} 54...
Kd5 {[%clk 0:00:40.5]} 55. Nd7 {[%clk 0:00:09.7]} 55... Nc5+ {[%clk 0:00:40.6]}
56. Nxc5 {[%clk 0:00:08.1]} 56... Kxc5 {[%clk 0:00:41.5]} 57. Kc2 {[%clk
0:00:05]} 57... a4 {[%clk 0:00:41]} 58. bxa4 {[%clk 0:00:02.9]} 58... bxa4
{[%clk 0:00:41.9]} 59. Kd3 {[%clk 0:00:03]} 59... Kd5 {[%clk 0:00:42.5]} 60. Kd2
{[%clk 0:00:02.2]} 60... Kc4 {[%clk 0:00:40.9]} 61. Kc2 {[%clk 0:00:01.9]} 61...
d3+ {[%clk 0:00:41.1]} 62. Kd2 {[%clk 0:00:02.5]} 62... Kd4 {[%clk 0:00:42]} 63.
g4 {[%clk 0:00:02.6]} 63... fxg4 {[%clk 0:00:41.2]} 64. f5 {[%clk 0:00:02.5]}
64... g3 {[%clk 0:00:34.2]} 65. f6 {[%clk 0:00:01.8]} 65... g2 {[%clk
0:00:34.5]} 66. f7 {[%clk 0:00:02.6]} 66... g1=Q {[%clk 0:00:34.9]} 67. f8=Q
{[%clk 0:00:03.4]} 67... Qe3+ {[%clk 0:00:35.4]} 68. Kd1 {[%clk 0:00:03.3]}
68... Qe2+ {[%clk 0:00:36.3]} 0-1

[Event "*** Titled Tuesday Blitz"]
[Site "Chess.com"]
[Date "2021.04.06"]
[Round "1"]
[White "GadimbayliA"]
[Black "Aslanov_Umid"]
[Result "1-0"]
[WhiteElo "2786"]
[BlackElo "2420"]
[TimeControl "180+1"]
[EndTime "10:08:23 PDT"]
[Termination "GadimbayliA won by resignation"]

1. e4 {[%clk 0:03:00.9]} 1... c5 {[%clk 0:02:59.7]} 2. Nf3 {[%clk 0:03:00.8]}
2... d6 {[%clk 0:02:59.9]} 3. d4 {[%clk 0:03:01.2]} 3... cxd4 {[%clk 0:02:59.4]}
4. Nxd4 {[%clk 0:03:02.1]} 4... Nf6 {[%clk 0:02:59]} 5. Nc3 {[%clk 0:03:02.6]}
5... a6 {[%clk 0:02:59.4]} 6. g3 {[%clk 0:03:02.8]} 6... e6 {[%clk 0:02:56.5]}
7. Bg2 {[%clk 0:03:02.5]} 7... Be7 {[%clk 0:02:57.4]} 8. O-O {[%clk 0:03:03]}
8... O-O {[%clk 0:02:57.6]} 9. Be3 {[%clk 0:03:03.6]} 9... Qc7 {[%clk
0:02:56.3]} 10. Qe2 {[%clk 0:03:02.9]} 10... Nc6 {[%clk 0:02:56.7]} 11. Rad1
{[%clk 0:03:02.6]} 11... Bd7 {[%clk 0:02:50.6]} 12. f4 {[%clk 0:03:02.3]} 12...
Nxd4 {[%clk 0:02:49.6]} 13. Bxd4 {[%clk 0:03:03.2]} 13... Bc6 {[%clk 0:02:49.5]}
14. g4 {[%clk 0:03:00.1]} 14... b5 {[%clk 0:02:40.4]} 15. g5 {[%clk 0:02:48.7]}
15... Nd7 {[%clk 0:02:40.1]} 16. a3 {[%clk 0:02:39]} 16... Rab8 {[%clk
0:02:37.5]} 17. h4 {[%clk 0:02:18.9]} 17... b4 {[%clk 0:02:29]} 18. axb4 {[%clk
0:02:18.9]} 18... Rxb4 {[%clk 0:02:29.8]} 19. Qxa6 {[%clk 0:01:38.2]} 19... Rxb2
{[%clk 0:01:46.2]} 20. Nd5 {[%clk 0:01:35.3]} 20... Bxd5 {[%clk 0:01:44.8]} 21.
exd5 {[%clk 0:01:28.9]} 21... Rxc2 {[%clk 0:01:33.7]} 22. dxe6 {[%clk
0:01:28.8]} 22... fxe6 {[%clk 0:01:34.5]} 23. Qd3 {[%clk 0:01:28.6]} 23... Qc4
{[%clk 0:01:23.1]} 24. Qxc4 {[%clk 0:01:17.2]} 24... Rxc4 {[%clk 0:01:24]} 25.
f5 {[%clk 0:01:16.4]} 25... Ne5 {[%clk 0:00:57]} 26. fxe6 {[%clk 0:01:09.4]}
26... Rxf1+ {[%clk 0:00:49.4]} 27. Kxf1 {[%clk 0:01:10.3]} 27... Ng6 {[%clk
0:00:39.8]} 28. h5 {[%clk 0:01:05.6]} 28... Nf4 {[%clk 0:00:36.8]} 29. Bf3
{[%clk 0:00:54]} 29... Bxg5 {[%clk 0:00:31.2]} 30. Bb6 {[%clk 0:00:43.5]} 30...
Kf8 {[%clk 0:00:28.5]} 31. Rxd6 {[%clk 0:00:39.9]} 31... Ke7 {[%clk 0:00:28.4]}
32. Rd7+ {[%clk 0:00:37.7]} 32... Kxe6 {[%clk 0:00:28.7]} 33. Rxg7 {[%clk
0:00:37.9]} 33... Bh4 {[%clk 0:00:28.9]} 34. Be3 {[%clk 0:00:29.4]} 34... Rc3
{[%clk 0:00:25.4]} 35. Bg4+ {[%clk 0:00:28.7]} 35... Kd5 {[%clk 0:00:16.5]} 36.
Bxf4 {[%clk 0:00:26.5]} 36... Ke4 {[%clk 0:00:16.8]} 37. Bd2 {[%clk 0:00:22.5]}
37... Rc2 {[%clk 0:00:16.4]} 38. Ke2 {[%clk 0:00:19.2]} 38... Bf6 {[%clk
0:00:12.7]} 39. Bf3+ {[%clk 0:00:18.7]} 39... Kf5 {[%clk 0:00:10.5]} 40. Rg1
{[%clk 0:00:12]} 40... Bc3 {[%clk 0:00:09.7]} 41. Kd3 {[%clk 0:00:12.1]} 41...
Rxd2+ {[%clk 0:00:08.2]} 42. Kxc3 {[%clk 0:00:12.4]} 42... Rf2 {[%clk
0:00:09.1]} 43. Bd1 {[%clk 0:00:12.6]} 43... Rh2 {[%clk 0:00:07.9]} 44. Rg7
{[%clk 0:00:11]} 44... h6 {[%clk 0:00:07.7]} 45. Rg6 {[%clk 0:00:11.2]} 45...
Rh3+ {[%clk 0:00:07.5]} 46. Kd4 {[%clk 0:00:08.5]} 46... Rh1 {[%clk 0:00:07.7]}
47. Bg4+ {[%clk 0:00:06.4]} 47... Kf4 {[%clk 0:00:07.6]} 48. Be2 {[%clk
0:00:07]} 48... Rh2 {[%clk 0:00:06.3]} 49. Kd3 {[%clk 0:00:07.4]} 49... Rh3+
{[%clk 0:00:06.1]} 50. Kd2 {[%clk 0:00:07.2]} 50... Kf5 {[%clk 0:00:06.1]} 51.
Rxh6 {[%clk 0:00:07.5]} 51... Kg5 {[%clk 0:00:05.3]} 52. Rg6+ {[%clk 0:00:07.8]}
52... Kf5 {[%clk 0:00:04.7]} 53. Bg4+ {[%clk 0:00:08.3]} 1-0